Cogmind - Beta 15 @@@ ROGUE MODE // 2025.09.11 @ 21:36:04 Player: Grose Result: Destroyed by G-47 Trooper with Particle Gun Performance ------------- Evolutions (0) 0 Regions Visited (1) 200 Robots Destroyed (13) 65 Value Destroyed (412) 412 Prototype IDs (0) 0 Alien Tech Used (0) 0 Bonus (0) 0 TOTAL SCORE: 677 Bonus ------- None Cogmind --------- Core Integrity 0/250 Matter 300/300 Energy 100/100 System Corruption 1% Temperature Cool (9) Movement Core (50) Location -10/Materials Parts ------- > --- POWER (1) -------- (None) > --- PROPULSION (2) --- (None) > --- UTILITY (2) ------ (None) > --- WEAPON (2) ------- (None) > --- INVENTORY (5) ---- Flight Unit Flight Unit Heat Sink Improved Heat Sink Structural Scanner Peak State ------------ > --- POWER ------------ Light Nuclear Core > --- PROPULSION ------- Aluminum Leg Aluminum Leg > --- UTILITY ---------- Small Storage Unit Signal Interpreter > --- WEAPON ----------- Particle Gun Light Assault Rifle > --- INVENTORY -------- Ion Engine Aluminum Leg Flight Unit Flight Unit Heat Sink Improved Heat Sink Structural Scanner Assault Rifle [Rating: 11] Favorites ----------- Power Light Ion Engine Engine Light Ion Engine Power Core Light Nuclear Core Propulsion Aluminum Leg Leg Aluminum Leg Flight Unit Flight Unit Utility Small Storage Unit Device Heat Sink Storage Small Storage Unit Processor Signal Interpreter Weapon Light Assault Rifle Energy Gun Particle Gun Ballistic Gun Light Assault Rifle Build | -11 -10 ------- Run | Yrd Mat Slots Evolved . | . . Power . | . . Propulsion . | . . Utility . | . . Weapon . | . . Parts Attached 15 | 6 9 Power 2 | 1 1 Engine 1 | 1 . Core 1 | . 1 Reactor . | . . Propulsion 5 | 2 3 Treads . | . . Leg 3 | 2 1 Wheel . | . . Hover . | . . Flight 2 | . 2 Utility 3 | 1 2 Device 1 | 1 . Storage 1 | . 1 Processor 1 | . 1 Hackware . | . . Protection . | . . Artifact . | . . Weapon 5 | 2 3 Energy Gun 2 | . 2 Energy Cannon . | . . Ballistic Gun 3 | 2 1 Ballistic Cannon . | . . Launcher . | . . Special Weapon . | . . Impact Weapon . | . . Slashing Weapon . | . . Piercing Weapon . | . . Special Melee Weapon . | . . Unidentified Prototypes . | . . Parts Lost 6 | . 6 Power 1 | . 1 Propulsion 2 | . 2 Utility . | . . Weapon 3 | . 3 Highest Loss Streak 6 | . 6 To Critical Strikes . | . . Average Backups 5 | . 5 Power . | . . Propulsion 1 | . 2 Utility 1 | . 1 Weapon . | . 1 Tool/Special . | . . Unused Backups 4 | . 4 Power 1 | . 1 Propulsion 1 | . 1 Utility 2 | . 2 Weapon . | . . Tool/Special . | . . Average Slot Usage (%) 90 | . 90 Engine 6 | . 6 Core 6 | . 6 Leg 25 | . 25 Device 5 | . 5 Storage 10 | . 10 Processor 8 | . 8 Energy Gun 9 | . 9 Ballistic Gun 17 | . 17 Peak Build Rating 11 | 6 11 Average Rating 7 | 3 8 On Entrance 3 | . 6 Naked Turns 17 | . 17 Heaviest Build 14 | 7 14 Greatest Support 20 | 20 20 Greatest Overweight (x) 2 | . 2 Average Overweight (x) . | . . Largest Inventory Capacity 8 | 5 8 Average Capacity 6 | 5 7 Most Carried 8 | 3 8 Average Carried 5 | . 5 Final Capacity 5 | 5 5 Final Carried 5 | 2 5 Class Distribution -------------------- 52% | Mutant 47% | Scavenger-Mutant Dominant Class ---------------- Scavenger-Mutant | -10/Materials Resources | -11 -10 ----------- Run | Yrd Mat Matter Collected 480 | 276 204 Remotely . | . . Salvage Created 586 | 37 549 Parts 26 | 2 24 Haulers Intercepted . | . . Recyclers Shooed . | . . Parts Field Recycled . | . . Retrieved Matter . | . . Parts Self-Destructed . | . . Prevented . | . . Kills | -11 -10 ------- Run | Yrd Mat Combat Hostiles Destroyed 11 | 1 10 Guns 11 | 1 10 Classes Destroyed 2 | 1 1 Recycler 2 | . 2 Grunt 11 | 1 10 Best Kill Streak 5 | 1 5 Combat Bots Only 3 | 1 3 Max Kills in Single Turn 1 | 1 1 Gunslinging . | . . Exploded . | . . Melee . | . . Uniques/NPCs Destroyed . | . . Combat | -11 -10 -------- Run | Yrd Mat Hostile Shots Fired 76 | 5 71 Missed 12 | 1 11 Hits 64 | 4 60 Projectile 64 | 4 60 Damage Taken 849 | 42 807 Core 262 | 22 240 Absorbed by Shields . | . . Core Remaining (%) 91 | 91 . Volleys Fired 57 | 4 53 Largest 2 | 2 2 Hottest 85 | 40 85 Shots Fired 102 | 8 94 Gun 102 | 8 94 Cannon . | . . Launcher . | . . Special . | . . Kinetic 67 | 8 59 Thermal 35 | . 35 Explosive . | . . Electromagnetic . | . . Robot Hit Streak 9 | 5 9 Robot Miss Streak 5 | 2 5 Penetration Max . | . . Secondary Targets 1 | . 1 Max Gunslinging Chain 1 | . 1 Shots Hit Robots 70 | 6 64 Core Hits 32 | 2 30 Critical Kills . | . . Critical Parts Destroyed . | . . Critical Strikes 1 | . 1 Burn 1 | . 1 Melee Attacks . | . . Impact . | . . Slashing . | . . Piercing . | . . Sneak Attacks . | . . Combat Hostiles . | . . Follow-up Attacks . | . . Damage Inflicted 862 | 63 799 Guns 843 | 63 780 Cannons . | . . Explosions . | . . Melee . | . . Ramming 19 | . 19 Kinetic 453 | 63 390 Thermal 390 | . 390 Explosive . | . . Electromagnetic . | . . Impact . | . . Slashing . | . . Piercing . | . . Highest Corruption 1 | . 1 Average Corruption 1 | . 1 Corruption Purged . | . . Corruption Blocked . | . . Effects 1 | . 1 Data Loss (minor) 1 | . 1 Overload Shots . | . . Overflow Damage . | . . Projectiles . | . . Explosions . | . . Melee . | . . Knockbacks . | . . Impact . | . . Kinetic . | . . Secondary . | . . Self-Inflicted Damage 6 | . 6 Shots . | . . Rammed 6 | . 6 Targets Rammed 8 | . 8 Kicked 2 | . 2 Crushed . | . . Highest Temperature 574 | 6 574 Average Temperature 216 | 6 223 Received Heat Transfer 453 | 24 429 Effects 13 | . 13 Shutdowns 1 | . 1 Energy Bleed 1 | . 1 Interference 2 | . 2 Short Circuit 4 | . 4 Damage (minor) 4 | . 4 Damage (core) 1 | . 1 Siege Activations . | . . Martial Activations . | . . Shielding Activations . | . . Robots Disrupted . | . . Combat Hostiles . | . . Robots Corrupted . | . . Combat Hostiles . | . . Parts Fried . | . . Impact Corruptions . | . . Robots Melted . | . . Combat Hostiles . | . . Parts Melted 1 | . 1 Heat Transferred 962 | . 962 Parts Sabotaged . | . . Parts Stolen . | . . Parts Stripped . | . . Power Chain Reactions . | . . Alert | -11 -10 ------- Run | Yrd Mat Maximum Alert Level . | . . Low Security (%) 100 | 100 100 Level 1 . | . . Level 2 . | . . Level 3 . | . . Level 4 . | . . Level 5 . | . . High Security . | . . Max Security . | . . Peak Influence 105 | 20 105 Initial 6 | . 6 Average 55 | 3 65 Influence Increases 329 | 20 309 Destroy 0b10 Robot/C 220 | 20 200 Destroy 0b10 Robot/NC 10 | . 10 Destroy Leader 50 | . 50 Successful Hack 18 | . 18 Destroy Structure 1 | . 1 Lose Combat Pursuer 30 | . 30 Influence Decreases 306 | 10 296 Entered New Map 4 | . 4 Time Decay 242 | 10 232 Lost Part 60 | . 60 Squads Dispatched 3 | . 3 Investigation 1 | . 1 Extermination . | . . Reinforcement 2 | . 2 Assault . | . . Garrison . | . . Intercept . | . . Searches Triggered . | . . Construction Impeded . | . . Haulers Reinforced . | . . Active Scanning Responses . | . . Cargo Convoy Interrupts . | . . Stealth | -11 -10 --------- Run | Yrd Mat Distress Signals . | . . Communications Jammed . | . . Distress Signals . | . . Times Spotted 19 | 1 18 Peak Tracking Total 5 | 1 5 Tactical Retreats 2 | . 2 Traps | -11 -10 ------- Run | Yrd Mat Traps Triggered . | . . Indirectly . | . . Trap Hack Attempts . | . . Triggered . | . . Disarmed . | . . Reprogrammed . | . . Reused . | . . Traps Extracted . | . . Installed . | . . Triggered . | . . Machines | -11 -10 ---------- Run | Yrd Mat Machines Disabled . | . . Max in Single Turn . | . . Machines Repaired . | . . Machines Dismantled . | . . Machines Sabotaged . | . . Overloaded Fab Kills . | . . Hacking | -11 -10 --------- Run | Yrd Mat Machines Accessed 3 | . 3 Terminals 3 | . 3 Fabricators . | . . Repair Stations . | . . Recycling Units . | . . Scanalyzers . | . . Garrison Access . | . . Total Hacks 10 | . 10 Successful 4 | . 4 Failed 6 | . 6 Catastrophic 3 | . 3 Database Lockouts . | . . Manual 8 | . 8 Terminals 10 | . 10 Fabricators . | . . Repair Stations . | . . Recycling Units . | . . Scanalyzers . | . . Garrison Access . | . . Terminal Hacks 4 | . 4 Robot Analysis 1 | . 1 Branch Access Points 1 | . 1 Terminal Index 1 | . 1 Locate Traps 1 | . 1 Fabricator Hacks . | . . Repair Station Hacks . | . . Recycling Unit Hacks . | . . Scanalyzer . | . . Garrison Access Hacks . | . . Unauthorized Hacks . | . . Terminals . | . . Fabricators . | . . Repair Stations . | . . Recycling Units . | . . Scanalyzers . | . . Garrison Access . | . . Data Cores Recovered . | . . Used . | . . Hacking Detections 3 | . 3 Full Trace Events 1 | . 1 Feedback Events . | . . Feedback Blocked . | . . Robot Schematics Acquired . | . . Robots Built . | . . Authchips . | . . Time . | . . Total Robot Build Rating . | . . Part Schematics Acquired . | . . Parts Built . | . . Authchips . | . . Time . | . . Total Part Build Rating . | . . Parts Repaired . | . . Time . | . . Parts Recycled . | . . Recycled Matter . | . . Retrieved Matter . | . . Retrieved Components . | . . Parts Scanalyzed . | . . Part Schematics Acquired . | . . Parts Damaged . | . . Bothacking | -11 -10 ------------ Run | Yrd Mat Used RIF Installer . | . . Robots Hacked . | . . Non-combat . | . . Combat . | . . Robot Hacks Applied . | . . Relay Couplers Released . | . . Fabnet Peak Effective % . | . . Robots Rewired . | . . Allies Hacked . | . . Hacks Repelled . | . . Allies | -11 -10 -------- Run | Yrd Mat Total Allies . | . . Largest Group . | . . Highest-Rated Group . | . . Highest-Rated Ally . | . . Total Orders . | . . Ally Attacks . | . . Total Damage . | . . Kills . | . . Allies Corrupted . | . . Allies Melted . | . . Intel | -11 -10 ------- Run | Yrd Mat Active Infowar (turns) . | . . Robot Analysis Total 1 | . 1 Derelict Logs Recovered . | . . Drone Launches . | . . Drone Recoveries . | . . Exploration | -11 -10 ------------- Run | Yrd Mat Turns Passed 636 | 101 535 Spaces Moved 356 | 76 280 Core 54 | 21 33 Treads . | . . Legs 302 | 55 247 Wheels . | . . Hover . | . . Flight . | . . Fastest Speed 50 | 50 50 Average Speed 109 | 100 112 Slowest Speed 150 | 120 150 Overloaded Moves . | . . Propulsion Burnouts . | . . Robots Hopped . | . . Potential Cave-ins . | . . Cave-ins Triggered . | . . Exploration Rate (%) 22 | 8 36 Regions Visited 1 Branch Regions . Pre-discovered Areas . | . . Known Exits Taken . | . . Unknown Exits Taken 1 | 1 . Scrap Searched . | . . Spaces Dug . | . . Terrain Destroyed . | . . Melee . | . . Projectile . | . . AOE . | . . Terrain Rammed . | . . Walls Destroyed . | . . Machines Disabled . | . . Actions | -11 -10 --------- Run | Yrd Mat Total 504 | 93 411 Wait 42 | . 42 Move 355 | 75 280 Hop . | . . Pick Up 18 | 8 10 Fast Attach . | . . Attach 9 | 6 3 Detach . | . . Swap 10 | . 10 Drop 5 | . 5 Fire 57 | 4 53 Melee . | . . Ram 6 | . 6 Kick 2 | . 2 Crush . | . . Escape Stasis . | . . Rewire . | . . Trap . | . . Miscellaneous . | . . Route ------- -11/Scrapyard -10/Materials (discovered 4 exits: [*Mat] / Min x2 / [*Sub]) History --------- Turn | Location | Event 2 | -11/Scrapyard | Met Revision 17 69 | -11/Scrapyard | Discovered new exit (range 8) 102 | -11/Scrapyard | Entered Materials 145 | -10/Materials | Identified exit to Mines 257 | -10/Materials | Discovered new exit (range 16) 362 | -10/Materials | Discovered new exit (range 7) 604 | -10/Materials | Core integrity fell below 50% 619 | -10/Materials | Core integrity fell below 20% 620 | -10/Materials | Released all parts (3) 637 | -10/Materials | Destroyed by G-47 Trooper with Particle Gun Last Messages --------------- 00609_ G-47 Trooper overheating. 00610_ Overheating: Energy bleed (-10). 00611_ Aluminum Leg broken. 00611_ Overheating: Short circuit. 00611_ K-01 Serf collects debris. 00613_ Slammed into G-34 Mercenary. 00614_ K-01 Serf collects debris. 00614_ Slammed into G-34 Mercenary. 00614_ Destabilizing: System corrupted (+1). 00615_ System corrupted: Component data lost. 00616_ Slammed into G-34 Mercenary. 00617_ K-01 Serf collects debris. 00617_ Slammed into G-34 Mercenary. 00618_ K-01 Serf collects debris. 00618_ Broken Particle Gun destroyed. 00619_ Slammed into G-47 Trooper. 00620_ Released Broken Aluminum Leg. 00620_ Released Sml. Storage Unit. 00620_ Released Broken Signal Interpreter. 00620_ Slammed into K-01 Serf. Map ----- +----------------------------------------------------+ | ?????????????????????????????????????????????????? | | ?????????????????????????????????????????????????? | | ?????????????????????????????????????????????????? | | ?????????????????????????????????????????????????? | | ?????????????????????????????????????????????????? | | ?????????????????????????????????????????????????? | | ?????????????????????????????????????????????????? | | ?????????????????????????????????????????????????? | | ????????????>????????????????????????????????????? | | ?????????????????????????????????????????????????? | | ?????????????????????????????????????????????????? | | ?????????????????????????????????????????????????? | | ??????????????????#??????###########?????????????? | | ??????????????##### ?????# T #?????????????? | | ?????????????? ^^ ?????# #?????????????? | | ??????????????? ^^ ????# """"" #?????????????? | | ?????????????????^^ ???# """"" #?????????????? | | ??????????????????# ???#[ ""!""%#?????????????? | | ???????????????????# ??# *%=%%%#?????????????? | | ???????????????????# #######+####### ???? | | ???????????????????+ %!= | ???? | | #########??????????# ## ???? | | #[[ T #??????????# #?????^???^?????? | | #[= #??????????######g#### #?????????^?????? | | #[ #???????????# g # #?^?????????????? | | # #???????????# @ # #???????????????? | | # #???????????# # #??????????^^???? | | ####+############???# # #???????????????? | | ???# ## """" #???# !!! # #???????????????? | | ???# ## """" #???# !!! # #???????????????? | | ???#*## """" #???# !!! # #???????????????? | | ???#=## #???#% # #???????????????? | | ???#!## ! #???# # #???????????????? | | ???#[## #???########## #???????????????? | | ???#%## #????????????# #???????????????? | | ???#=## #????????????# #???????????????? | | ???#!######+#####????????????# #???????????????? | | ???#* * ########???????## #???????????????? | | ##########%! # ##??????#T #???????????????? | | ^^ # [" <#??????## #???????????????? | | """ # %# ##?####### #???????????????? | | """""^ # #########?# # #???????????????? | | """"" # ##T###% # #???????????????? | | """" =+ %+% # #???????????????? | | """ # === ##### # #???????????????? | | ! ## == #???# # #???????????????? | | [ ## = #???# %+ #???????????????? | | ####+###### #???# # #???????????????? | | ???# #???# # #???????????????? | | ???# #???# # #???????????????? | +----------------------------------------------------+ Best States ------------- Heat Dissipation 35 Energy Generation 14 Energy Capacity 160 Matter Stores 300 Matter Capacity 300 Sight Range 16 Terrain Scan Density 10 Evasion (%) 55 Item Schematics ----------------- None Robot Schematics ------------------ None Fabricated ------------ Nothing Repaired ---------- Nothing Alien Tech Used ----------------- None Achievements -------------- None Challenges ------------ None Game ------ Seed RapidReactionBarrier Manual? 0 Play Time 00:16:28 Cumulative 4.1 hours Start 2025.09.11 @ 21:20:56 End 2025.09.11 @ 21:36:04 Sessions 1 Manual Loads 0 Difficulty Rogue Special Mode None Game No. 3 Rogue 3 Adventurer 0 Explorer 0 Win Type - Total 0 Types 0/0/0/0/0/0/0/0/0/0 Lore% 2 Gallery% 5 Achievement% 8 Wizard Run 0 Options --------- Layout 1 ASCII 0 Keyboard 0 Movement Mouse Keybinds 0 Fullscreen 1 Font 24/Tamsyn Map View 50x35 Zoom Use 0% Tactical HUD 1 Map Filters NONE Filters NONE Steam 1 RUN: 7a040c9c-a1ae-419b-a232-d55b32d46445